[Event "Elitserien 2019/2020, round 7-9"]
[Site "Elite stadshotellet, Kungsgatan 6, Vaxjo, Sweden"]
[Date "2020.10.16"]
[Round "1.15"]
[White "Lindeman, Sven"]
[Black "Lindahl, Emil"]
[Result "0-1"]
[TimeControl "90 minutes for 40 moves + 30 minutes for the rest of the game + 30 seconds per move from move one."]
[WhiteFideId "1700790"]
[BlackFideId "1713116"]
[WhiteElo "2157"]
[BlackElo "2179"]

1. e4 {[%clk 01:30:56]} {[%emt 00:00:03]} c5 {[%clk 01:30:56]} {[%emt
00:00:05]} 2. Nf3 {[%clk 01:31:20]} {[%emt 00:00:05]} e6 {[%clk 01:31:22]}
{[%emt 00:00:05]} 3. d3 {[%clk 01:30:59]} {[%emt 00:00:50]} Nc6 {[%clk
01:30:35]} {[%emt 00:01:18]} 4. g3 {[%clk 01:31:02]} {[%emt 00:00:26]} b6
{[%clk 01:29:07]} {[%emt 00:01:59]} 5. Bg2 {[%clk 01:31:11]} {[%emt 00:00:18]}
Bb7 {[%clk 01:29:31]} {[%emt 00:00:08]} 6. O-O {[%clk 01:31:26]} {[%emt
00:00:13]} d6 {[%clk 01:23:07]} {[%emt 00:06:57]} 7. Re1 {[%clk 01:30:02]}
{[%emt 00:01:53]} Nf6 {[%clk 01:18:22]} {[%emt 00:05:15]} 8. a3 {[%clk
01:28:32]} {[%emt 00:02:01]} Be7 {[%clk 01:15:43]} {[%emt 00:03:09]} 9. c3
{[%clk 01:26:21]} {[%emt 00:02:40]} O-O {[%clk 01:12:13]} {[%emt 00:04:01]} 10.
d4 {[%clk 01:22:09]} {[%emt 00:04:42]} Qc7 {[%clk 00:54:44]} {[%emt 00:18:00]}
11. e5 {[%clk 01:15:49]} {[%emt 00:06:49]} Nd7 {[%clk 00:49:16]} {[%emt
00:05:59]} 12. Bf4 {[%clk 01:02:26]} {[%emt 00:13:53]} cxd4 {[%clk 00:44:45]}
{[%emt 00:05:02]} 13. cxd4 {[%clk 01:02:29]} {[%emt 00:00:26]} dxe5 {[%clk
00:34:14]} {[%emt 00:11:01]} 14. dxe5 {[%clk 01:02:34]} {[%emt 00:00:25]} Nc5
{[%clk 00:33:30]} {[%emt 00:01:15]} 15. Qc2 {[%clk 01:00:41]} {[%emt 00:02:21]}
a5 {[%clk 00:21:55]} {[%emt 00:12:06]} 16. Nbd2 {[%clk 00:57:33]} {[%emt
00:03:37]} Rfd8 {[%clk 00:19:58]} {[%emt 00:02:28]} 17. Re3 {[%clk 00:51:19]}
{[%emt 00:06:43]} h6 {[%clk 00:13:56]} {[%emt 00:06:34]} 18. h4 {[%clk
00:50:14]} {[%emt 00:01:34]} Nd4 {[%clk 00:09:55]} {[%emt 00:04:32]} 19. Nxd4
{[%clk 00:49:02]} {[%emt 00:01:42]} Rxd4 {[%clk 00:10:02]} {[%emt 00:00:23]} 20.
Nf3 {[%clk 00:41:35]} {[%emt 00:07:55]} Rd7 {[%clk 00:09:08]} {[%emt 00:01:25]}
21. Rc3 {[%clk 00:39:47]} {[%emt 00:02:17]} a4 {[%clk 00:07:20]} {[%emt
00:02:19]} 22. Re1 {[%clk 00:35:19]} {[%emt 00:04:58]} Rad8 {[%clk 00:07:15]}
{[%emt 00:00:36]} 23. h5 {[%clk 00:32:50]} {[%emt 00:02:58]} Bd5 {[%clk
00:05:22]} {[%emt 00:02:23]} 24. g4 {[%clk 00:21:35]} {[%emt 00:11:45]} Qb7
{[%clk 00:04:59]} {[%emt 00:00:53]} 25. Rce3 {[%emt 00:04:20]} Nb3 {[%clk
00:02:38]} {[%emt 00:00:45]} 26. Rc3 {[%clk 00:14:36]} {[%emt 00:05:45]} b5
{[%clk 00:02:15]} {[%emt 00:00:54]} 27. Ree3 {[%clk 00:04:55]} {[%emt
00:10:10]} b4 {[%clk 00:02:23]} {[%emt 00:00:22]} 28. axb4 {[%clk 00:04:00]}
{[%emt 00:01:25]} Bxb4 {[%clk 00:02:50]} {[%emt 00:00:03]} 29. Rcd3 {[%clk
00:02:36]} {[%emt 00:01:53]} Rc8 {[%clk 00:03:11]} {[%emt 00:00:09]} 30. Qe2
{[%clk 00:02:34]} {[%emt 00:00:31]} Nc1 {[%clk 00:03:25]} {[%emt 00:00:16]} 31.
Qd1 {[%clk 00:02:54]} {[%emt 00:00:10]} Nxd3 {[%clk 00:03:44]} {[%emt
00:00:12]} 32. Rxd3 {[%clk 00:03:19]} {[%emt 00:00:05]} Rcd8 {[%clk 00:03:01]}
{[%emt 00:01:14]} 33. Qxa4 {[%clk 00:01:34]} {[%emt 00:02:15]} Be7 {[%clk
00:03:11]} {[%emt 00:00:19]} 34. Re3 {[%clk 00:00:59]} {[%emt 00:01:05]} Qxb2
{[%clk 00:03:18]} {[%emt 00:00:23]} 35. Bf1 {[%clk 00:01:20]} {[%emt 00:00:09]}
Bc5 {[%clk 00:02:52]} {[%emt 00:00:56]} 36. g5 {[%clk 00:01:27]} {[%emt
00:00:23]} Bxe3 {[%clk 00:02:52]} {[%emt 00:00:30]} 37. Bxe3 {[%clk 00:01:53]}
{[%emt 00:00:05]} Bxf3 {[%clk 00:02:54]} {[%emt 00:00:27]} 38. Qf4 {[%clk
00:02:20]} {[%emt 00:00:03]} Bxh5 {[%clk 00:02:35]} {[%emt 00:00:49]} 39. gxh6
{[%clk 00:02:45]} {[%emt 00:00:05]} Qb1 {[%clk 00:02:05]} {[%emt 00:01:00]} 40.
Kh2 {[%clk 00:02:08]} {[%emt 00:01:07]} Qxf1 {[%clk 00:00:58]} {[%emt
00:01:37]} 41. hxg7 {[%clk 00:01:53]} {[%emt 00:00:45]} Rd1 {[%clk 00:00:47]}
{[%emt 00:00:42]} 0-1

[Event "Elitserien 2019/2020, round 7-9"]
[Site "Elite stadshotellet, Kungsgatan 6, Vaxjo, Sweden"]
[Date "2020.10.17"]
[Round "2.1"]
[White "Lundin, Jan"]
[Black "Gdanski, Jacek"]
[Result "0-1"]
[TimeControl "90 minutes for 40 moves + 30 minutes for the rest of the game + 30 seconds per move from move one."]
[WhiteTitle "FM"]
[BlackTitle "GM"]
[WhiteFideId "1706896"]
[BlackFideId "1100106"]
[WhiteElo "2350"]
[BlackElo "2482"]

1. e4 {[%emt 00:00:02]} e6 {[%emt 00:00:04]} 2. d4 {[%emt 00:00:13]} d5 {[%emt
00:00:06]} 3. Nc3 {[%emt 00:00:06]} Bb4 {[%emt 00:00:17]} 4. a3 {[%emt
00:00:06]} Bxc3+ {[%emt 00:00:17]} 5. bxc3 {[%clk 01:30:57]} {[%emt 00:00:05]}
dxe4 {[%clk 01:30:59]} 6. Qg4 {[%clk 01:33:04]} {[%emt 00:00:56]} Nf6 {[%clk
01:32:17]} {[%emt 00:01:06]} 7. Qxg7 {[%clk 01:33:26]} {[%emt 00:00:07]} Rg8
{[%clk 01:32:40]} {[%emt 00:00:07]} 8. Qh6 {[%clk 01:33:47]} {[%emt 00:00:08]}
Nbd7 {[%clk 01:28:52]} {[%emt 00:04:19]} 9. a4 {[%clk 01:30:40]} {[%emt
00:03:37]} c5 {[%clk 01:23:01]} {[%emt 00:06:21]} 10. a5 {[%clk 01:30:38]}
{[%emt 00:00:32]} Qc7 {[%clk 01:16:33]} {[%emt 00:06:58]} 11. dxc5 {[%clk
01:14:03]} {[%emt 00:17:05]} Qxc5 {[%clk 01:13:31]} {[%emt 00:03:31]} 12. Qe3
{[%clk 01:14:20]} {[%emt 00:00:14]} Nd5 {[%clk 01:07:30]} {[%emt 00:06:31]} 13.
Qxc5 {[%clk 01:13:58]} {[%emt 00:00:52]} Nxc5 {[%clk 01:07:57]} {[%emt
00:00:02]} 14. Ba3 {[%clk 01:14:02]} {[%emt 00:00:27]} b6 {[%clk 01:08:14]}
{[%emt 00:00:13]} 15. c4 {[%clk 01:08:12]} {[%emt 00:06:20]} Ne7 {[%clk
01:07:37]} {[%emt 00:01:06]} 16. Ne2 {[%clk 01:05:06]} {[%emt 00:03:36]} Bb7
{[%clk 00:38:22]} {[%emt 00:29:45]} 17. Bxc5 {[%clk 01:01:00]} {[%emt
00:04:37]} bxc5 {[%emt 00:00:28]} 18. a6 {[%clk 01:01:07]} Bc6 {[%clk
00:34:10]} {[%emt 00:05:07]} 19. Ra5 {[%clk 01:00:51]} {[%emt 00:00:46]} Rg5
{[%clk 00:32:09]} {[%emt 00:02:31]} 20. h4 {[%clk 00:59:44]} {[%emt 00:01:36]}
Re5 {[%clk 00:32:35]} {[%emt 00:00:04]} 21. Rh3 {[%clk 00:58:03]} {[%emt
00:02:11]} Rd8 {[%clk 00:17:26]} {[%emt 00:15:39]} 22. Rg3 {[%clk 00:42:54]}
{[%emt 00:15:39]} Nf5 {[%clk 00:07:11]} {[%emt 00:10:45]} 23. Rg8+ {[%clk
00:40:08]} {[%emt 00:03:16]} Ke7 {[%clk 00:07:39]} {[%emt 00:00:02]} 24. Rxd8
{[%clk 00:40:26]} {[%emt 00:00:13]} Kxd8 {[%clk 00:08:07]} {[%emt 00:00:01]} 25.
g3 {[%clk 00:23:20]} {[%emt 00:17:36]} Kc7 {[%clk 00:08:29]} {[%emt 00:00:08]}
26. Nc1 {[%clk 00:14:12]} {[%emt 00:09:37]} Kb6 {[%clk 00:07:04]} {[%emt
00:01:55]} 27. Nb3 {[%clk 00:14:30]} {[%emt 00:00:12]} f6 {[%clk 00:04:57]}
{[%emt 00:02:38]} 28. c3 {[%clk 00:12:43]} {[%emt 00:02:16]} h6 {[%clk
00:04:18]} {[%emt 00:01:10]} 29. Ra2 {[%clk 00:09:30]} {[%emt 00:03:42]} Nd6
{[%clk 00:04:24]} {[%emt 00:00:24]} 30. Be2 {[%clk 00:07:35]} {[%emt 00:02:25]}
f5 {[%clk 00:01:49]} {[%emt 00:03:05]} 31. Nd4 {[%clk 00:03:54]} {[%emt
00:04:10]} Bd7 {[%clk 00:01:44]} {[%emt 00:00:35]} 32. Nc2 {[%clk 00:01:46]}
{[%emt 00:02:38]} f4 {[%clk 00:01:29]} {[%emt 00:00:45]} 33. gxf4 {[%clk
00:01:09]} {[%emt 00:01:07]} Rf5 {[%clk 00:01:56]} {[%emt 00:00:03]} 34. Rb2+
{[%clk 00:00:49]} {[%emt 00:00:50]} Kc7 {[%clk 00:02:07]} 35. Ne3 {[%clk
00:00:37]} {[%emt 00:01:02]} Rxf4 {[%clk 00:02:35]} 36. h5 {[%clk 00:00:53]}
{[%emt 00:00:15]} Bc8 {[%emt 00:01:35]} 37. Bg4 {[%clk 00:00:48]} Nxc4 {[%clk
00:01:42]} {[%emt 00:00:53]} 38. Nxc4 {[%clk 00:00:53]} {[%emt 00:00:25]} Rxg4
{[%clk 00:02:08]} {[%emt 00:00:04]} 39. Rb5 {[%clk 00:00:51]} {[%emt 00:00:32]}
Rg5 {[%clk 00:01:53]} {[%emt 00:00:45]} 40. Ra5 {[%clk 00:00:43]} {[%emt
00:00:38]} Rxh5 {[%clk 00:01:22]} {[%emt 00:01:01]} 41. Ke2 {[%clk 00:29:49]}
{[%emt 00:01:24]} Kc6 {[%clk 00:29:50]} 42. Ra1 {[%clk 00:26:03]} {[%emt
00:06:17]} Rh3 {[%clk 00:23:57]} 43. Kd2 {[%clk 00:25:48]} {[%emt 00:07:08]} h5
{[%clk 00:21:32]} {[%emt 00:02:55]} 44. Na5+ {[%clk 00:23:44]} {[%emt
00:02:34]} Kc7 {[%clk 00:20:51]} {[%emt 00:01:11]} 45. Nb3 {[%clk 00:21:26]}
{[%emt 00:02:48]} Kb6 {[%clk 00:16:29]} {[%emt 00:04:52]} 46. Re1 {[%clk
00:18:14]} {[%emt 00:03:42]} e3+ {[%clk 00:14:27]} {[%emt 00:02:33]} 47. fxe3
{[%clk 00:16:48]} {[%emt 00:01:57]} Bxa6 {[%clk 00:14:47]} {[%emt 00:00:08]} 48.
e4 {[%clk 00:14:19]} {[%emt 00:02:58]} h4 {[%clk 00:08:49]} {[%emt 00:06:28]}
49. Rg1 {[%clk 00:10:08]} {[%emt 00:04:41]} Rg3 {[%clk 00:09:09]} {[%emt
00:00:11]} 50. Rxg3 {[%clk 00:09:45]} {[%emt 00:00:54]} hxg3 {[%clk 00:09:34]}
{[%emt 00:00:05]} 51. Ke3 {[%clk 00:10:07]} {[%emt 00:00:07]} g2 {[%clk
00:09:05]} {[%emt 00:00:59]} 52. Kf2 {[%clk 00:10:33]} {[%emt 00:00:04]} Bf1
{[%clk 00:09:32]} {[%emt 00:00:03]} 53. Nd2 {[%clk 00:10:52]} {[%emt 00:00:11]}
Kb5 {[%clk 00:09:42]} {[%emt 00:00:20]} 54. Nf3 {[%clk 00:10:58]} {[%emt
00:00:23]} a5 {[%clk 00:09:59]} {[%emt 00:00:13]} 0-1

[Event "Elitserien 2019/2020, round 7-9"]
[Site "Elite stadshotellet, Kungsgatan 6, Vaxjo, Sweden"]
[Date "2020.10.17"]
[Round "2.2"]
[White "Heberla, Bartlomiej"]
[Black "Livner, Anders"]
[Result "1/2-1/2"]
[TimeControl "90 minutes for 40 moves + 30 minutes for the rest of the game + 30 seconds per move from move one."]
[WhiteTitle "GM"]
[BlackTitle "FM"]
[WhiteFideId "1115120"]
[BlackFideId "1704150"]
[WhiteElo "2564"]
[BlackElo "2371"]

1. Nf3 {[%clk 01:29:55]} {[%emt 00:00:59]} d5 {[%clk 01:30:54]} {[%emt
00:00:11]} 2. c4 {[%clk 01:30:13]} {[%emt 00:00:12]} d4 {[%clk 01:31:03]}
{[%emt 00:00:22]} 3. g3 {[%clk 01:25:04]} {[%emt 00:05:39]} Nc6 {[%clk
01:30:50]} {[%emt 00:00:43]} 4. Bg2 {[%clk 01:25:19]} {[%emt 00:00:14]} e5
{[%clk 01:29:59]} {[%emt 00:01:21]} 5. d3 {[%clk 01:24:52]} {[%emt 00:00:57]}
Nf6 {[%clk 01:28:17]} {[%emt 00:02:12]} 6. O-O {[%clk 01:25:19]} {[%emt
00:00:03]} a5 {[%clk 01:28:11]} {[%emt 00:00:36]} 7. e3 {[%clk 01:25:05]}
{[%emt 00:00:43]} Bc5 {[%clk 01:28:00]} {[%emt 00:00:41]} 8. exd4 {[%clk
01:17:41]} {[%emt 00:07:54]} Bxd4 {[%clk 01:27:10]} {[%emt 00:01:20]} 9. Nxd4
{[%clk 01:13:08]} {[%emt 00:05:04]} Nxd4 {[%clk 01:27:32]} {[%emt 00:00:07]} 10.
Re1 {[%clk 01:12:08]} {[%emt 00:01:29]} O-O {[%clk 01:26:27]} {[%emt 00:01:36]}
11. h3 {[%clk 01:04:36]} {[%emt 00:08:02]} Re8 {[%clk 01:25:48]} {[%emt
00:01:08]} 12. Nc3 {[%clk 01:04:43]} {[%emt 00:00:23]} Ra6 {[%clk 01:21:40]}
{[%emt 00:04:39]} 13. b3 {[%clk 00:53:00]} {[%emt 00:12:13]} Bd7 {[%clk
01:08:11]} {[%emt 00:13:59]} 14. Ne2 {[%clk 00:43:44]} {[%emt 00:09:46]} Bc6
{[%clk 00:48:08]} {[%emt 00:20:33]} 15. Nxd4 {[%clk 00:43:37]} {[%emt
00:00:37]} Qxd4 {[%clk 00:32:14]} {[%emt 00:16:24]} 16. Rb1 {[%clk 00:33:22]}
{[%emt 00:10:45]} Bxg2 {[%clk 00:29:38]} {[%emt 00:03:07]} 17. Kxg2 {[%clk
00:30:02]} {[%emt 00:03:49]} Qd7 {[%clk 00:17:45]} {[%emt 00:12:23]} 18. Qf3
{[%clk 00:28:55]} {[%emt 00:01:36]} c5 {[%clk 00:17:18]} {[%emt 00:00:58]} 19.
Bb2 {[%clk 00:27:58]} {[%emt 00:01:26]} Rae6 {[%clk 00:16:31]} {[%emt
00:01:18]} 20. Re3 {[%clk 00:26:42]} {[%emt 00:01:46]} b6 {[%clk 00:06:04]}
{[%emt 00:10:58]} 21. Rbe1 {[%clk 00:20:29]} {[%emt 00:06:42]} Qd6 {[%clk
00:06:03]} {[%emt 00:00:31]} 22. Kg1 {[%clk 00:15:56]} {[%emt 00:05:03]} Nd7
{[%clk 00:05:46]} {[%emt 00:00:48]} 23. h4 {[%clk 00:15:46]} {[%emt 00:00:39]}
Nb8 {[%clk 00:03:27]} {[%emt 00:02:49]} 24. Qd5 {[%clk 00:15:16]} {[%emt
00:01:00]} f6 {[%clk 00:02:54]} {[%emt 00:01:04]} 25. f4 {[%clk 00:15:15]}
{[%emt 00:00:30]} Nd7 {[%clk 00:02:07]} {[%emt 00:01:18]} 26. Qf3 {[%clk
00:08:30]} {[%emt 00:07:14]} exf4 {[%clk 00:01:45]} {[%emt 00:00:52]} 27. gxf4
{[%clk 00:08:10]} {[%emt 00:00:50]} Rxe3 {[%clk 00:01:10]} {[%emt 00:01:05]} 28.
Rxe3 {[%clk 00:08:37]} {[%emt 00:00:04]} Rxe3 {[%clk 00:01:03]} {[%emt
00:00:37]} 29. Qxe3 {[%clk 00:09:05]} {[%emt 00:00:02]} Kf7 {[%clk 00:01:01]}
{[%emt 00:00:32]} 30. Kf2 {[%clk 00:06:52]} {[%emt 00:02:42]} Qe6 {[%clk
00:00:47]} {[%emt 00:00:45]} 31. Qf3 {[%clk 00:04:46]} {[%emt 00:02:36]} g6
{[%clk 00:00:40]} {[%emt 00:00:38]} 32. h5 {[%clk 00:04:11]} {[%emt 00:01:04]}
Qf5 {[%clk 00:00:59]} {[%emt 00:00:11]} 33. hxg6+ {[%clk 00:04:37]} {[%emt
00:00:03]} hxg6 {[%clk 00:01:11]} {[%emt 00:00:18]} 34. Ke3 {[%clk 00:04:38]}
{[%emt 00:00:29]} Qe6+ {[%clk 00:00:38]} {[%emt 00:01:03]} 35. Kd2 {[%clk
00:04:38]} {[%emt 00:00:30]} Qf5 {[%clk 00:00:50]} {[%emt 00:00:19]} 36. Kc2
{[%clk 00:02:29]} {[%emt 00:02:38]} g5 {[%clk 00:00:39]} {[%emt 00:00:41]} 37.
Qh5+ {[%clk 00:02:45]} {[%emt 00:00:13]} Qg6 {[%clk 00:00:56]} {[%emt
00:00:14]} 38. Qg4 {[%clk 00:03:05]} {[%emt 00:00:08]} f5 {[%clk 00:00:33]}
{[%emt 00:00:56]} 39. Qxg5 {[%clk 00:02:05]} {[%emt 00:01:30]} Qxg5 {[%clk
00:01:02]} {[%emt 00:00:01]} 40. fxg5 {[%clk 00:02:33]} {[%emt 00:00:02]} Kg6
{[%clk 00:01:47]} {[%emt 00:04:17]} 41. Bc1 {[%clk 00:02:38]} {[%emt 00:00:24]}
Nf8 {[%clk 00:28:14]} {[%emt 00:04:03]} 42. Bf4 {[%clk 00:10:57]} {[%emt
00:22:11]} Ne6 {[%clk 00:28:20]} {[%emt 00:00:24]} 43. Bb8 {[%clk 00:11:18]}
{[%emt 00:00:08]} Kxg5 {[%clk 00:25:46]} {[%emt 00:03:04]} 44. Ba7 {[%clk
00:10:00]} {[%emt 00:01:48]} Kf4 {[%clk 00:19:42]} {[%emt 00:06:35]} 45. Bxb6
{[%clk 00:07:05]} {[%emt 00:03:26]} Ke3 {[%clk 00:19:21]} {[%emt 00:00:50]} 46.
Bxa5 {[%clk 00:07:14]} {[%emt 00:00:22]} Nd4+ {[%clk 00:12:42]} {[%emt
00:07:09]} 47. Kd1 {[%clk 00:06:53]} {[%emt 00:00:48]} Kxd3 {[%clk 00:11:54]}
{[%emt 00:01:21]} 48. Bb6 {[%clk 00:03:46]} {[%emt 00:03:36]} Kc3 {[%clk
00:10:02]} {[%emt 00:02:22]} 49. Bxc5 {[%clk 00:04:04]} {[%emt 00:00:11]} Nxb3
{[%clk 00:10:22]} {[%emt 00:00:11]} 50. Bb4+ {[%clk 00:04:26]} {[%emt
00:00:08]} Kxc4 {[%clk 00:10:38]} {[%emt 00:00:14]} 51. axb3+ {[%clk 00:04:51]}
{[%emt 00:00:05]} 1/2-1/2

[Event "Elitserien 2019/2020, round 7-9"]
[Site "Elite stadshotellet, Kungsgatan 6, Vaxjo, Sweden"]
[Date "2020.10.17"]
[Round "2.3"]
[White "Ong, Kezli"]
[Black "Ornstein, Axel"]
[Result "1-0"]
[TimeControl "90 minutes for 40 moves + 30 minutes for the rest of the game + 30 seconds per move from move one."]
[BlackTitle "IM"]
[WhiteFideId "1706500"]
[BlackFideId "1700111"]
[WhiteElo "2281"]
[BlackElo "2284"]

1. e4 {[%clk 01:30:54]} {[%emt 00:00:04]} e5 {[%clk 01:30:50]} {[%emt
00:00:11]} 2. Nf3 {[%clk 01:31:08]} {[%emt 00:00:16]} Nc6 {[%clk 01:31:14]}
{[%emt 00:00:06]} 3. Bc4 {[%clk 01:30:45]} {[%emt 00:00:53]} Bc5 {[%clk
01:29:47]} {[%emt 00:01:57]} 4. d3 {[%clk 01:30:32]} {[%emt 00:00:44]} Nf6
{[%clk 01:29:47]} {[%emt 00:00:29]} 5. O-O {[%clk 01:28:49]} {[%emt 00:02:13]}
O-O {[%clk 01:30:01]} {[%emt 00:00:16]} 6. c3 {[%clk 01:27:07]} {[%emt
00:02:12]} d6 {[%clk 01:26:42]} {[%emt 00:03:49]} 7. Bg5 {[%clk 01:12:39]}
{[%emt 00:14:58]} h6 {[%clk 01:26:34]} {[%emt 00:00:37]} 8. Bh4 {[%clk
01:12:22]} {[%emt 00:00:48]} a6 {[%clk 01:20:37]} {[%emt 00:06:26]} 9. b4
{[%clk 00:49:34]} {[%emt 00:23:19]} Ba7 {[%clk 01:20:52]} {[%emt 00:00:15]} 10.
Nbd2 {[%clk 00:48:42]} {[%emt 00:01:23]} Bg4 {[%clk 01:16:34]} {[%emt
00:04:47]} 11. h3 {[%clk 00:41:13]} {[%emt 00:08:00]} Bh5 {[%clk 01:16:17]}
{[%emt 00:00:47]} 12. g4 {[%clk 00:36:36]} {[%emt 00:05:07]} Bg6 {[%clk
01:16:39]} {[%emt 00:00:07]} 13. Bb3 {[%clk 00:32:58]} {[%emt 00:04:09]} Nb8
{[%clk 01:08:03]} {[%emt 00:09:06]} 14. Nc4 {[%clk 00:25:45]} {[%emt 00:07:43]}
Nbd7 {[%clk 01:05:33]} {[%emt 00:03:00]} 15. Ne3 {[%clk 00:25:10]} {[%emt
00:01:06]} Qe8 {[%clk 01:02:53]} {[%emt 00:03:09]} 16. Nf5 {[%clk 00:14:20]}
{[%emt 00:11:20]} Bxf5 {[%clk 00:59:52]} {[%emt 00:03:31]} 17. gxf5 {[%clk
00:14:47]} {[%emt 00:00:03]} Kh7 {[%clk 00:59:14]} {[%emt 00:01:07]} 18. Kh1
{[%clk 00:11:28]} {[%emt 00:03:50]} g5 {[%clk 00:56:00]} {[%emt 00:03:44]} 19.
Bxg5 {[%clk 00:07:48]} {[%emt 00:04:11]} hxg5 {[%clk 00:54:58]} {[%emt
00:01:31]} 20. Nxg5+ {[%clk 00:08:14]} {[%emt 00:00:04]} Kh8 {[%clk 00:55:13]}
{[%emt 00:00:15]} 21. Qf3 {[%clk 00:06:38]} {[%emt 00:02:06]} d5 {[%clk
00:53:49]} {[%emt 00:01:53]} 22. Bxd5 {[%clk 00:03:31]} {[%emt 00:03:37]} Nxd5
{[%clk 00:54:00]} {[%emt 00:00:20]} 23. Qh5+ {[%clk 00:01:51]} {[%emt
00:02:11]} Kg7 {[%clk 00:54:28]} {[%emt 00:00:01]} 24. Ne6+ {[%clk 00:01:35]}
{[%emt 00:00:45]} Qxe6 {[%clk 00:52:02]} {[%emt 00:02:56]} 25. Rg1+ {[%clk
00:00:58]} {[%emt 00:01:08]} Qg6 {[%clk 00:52:24]} {[%emt 00:00:08]} 26. Rxg6+
{[%clk 00:01:04]} {[%emt 00:00:24]} fxg6 {[%clk 00:52:46]} {[%emt 00:00:07]} 27.
Qxg6+ {[%clk 00:01:29]} {[%emt 00:00:05]} Kh8 {[%clk 00:53:10]} {[%emt
00:00:06]} 28. Qh6+ {[%clk 00:01:33]} {[%emt 00:00:26]} Kg8 {[%clk 00:53:34]}
{[%emt 00:00:05]} 29. Rg1+ {[%clk 00:01:51]} {[%emt 00:00:12]} Kf7 {[%clk
00:53:59]} {[%emt 00:00:04]} 30. Qe6# {[%clk 00:02:14]} {[%emt 00:00:06]} 1-0